[Event "Late-Titled-Tuesday-Blitz-October-10-2023"]
[Site "Chess.com"]
[Date "2023.10.10"]
[Round "1"]
[White "karwowskikacper"]
[Black "MikeSailer"]
[Result "0-1"]
[WhiteElo "2534"]
[BlackElo "2169"]
[TimeControl "180+1"]
[EndTime "14:07:51 PDT"]
[Termination "MikeSailer won by checkmate"]

1. e4 {[%clk 0:02:58.8]} 1... d5 {[%clk 0:02:58.7]} 2. exd5 {[%clk 0:02:56.2]}
2... Qxd5 {[%clk 0:02:57.4]} 3. Nc3 {[%clk 0:02:56]} 3... Qd6 {[%clk 0:02:56.5]}
4. g3 {[%clk 0:02:55]} 4... c6 {[%clk 0:02:56.7]} 5. Bg2 {[%clk 0:02:54.3]} 5...
Nf6 {[%clk 0:02:55.4]} 6. Nge2 {[%clk 0:02:53.9]} 6... Bf5 {[%clk 0:02:55.3]} 7.
O-O {[%clk 0:02:53.5]} 7... e6 {[%clk 0:02:56]} 8. d3 {[%clk 0:02:52.2]} 8...
Qc7 {[%clk 0:02:56]} 9. a4 {[%clk 0:02:50.1]} 9... a5 {[%clk 0:02:55.3]} 10. Bf4
{[%clk 0:02:46.9]} 10... Bd6 {[%clk 0:02:55.1]} 11. Qd2 {[%clk 0:02:45]} 11...
O-O {[%clk 0:02:52.6]} 12. Rfe1 {[%clk 0:02:41.7]} 12... h6 {[%clk 0:02:50.6]}
13. Bxd6 {[%clk 0:02:29.9]} 13... Qxd6 {[%clk 0:02:49.2]} 14. Qe3 {[%clk
0:02:30.8]} 14... Nbd7 {[%clk 0:02:42.8]} 15. Ne4 {[%clk 0:02:21.9]} 15... Qc7
{[%clk 0:02:33]} 16. N2c3 {[%clk 0:02:16.2]} 16... Nd5 {[%clk 0:02:20.4]} 17.
Nxd5 {[%clk 0:02:13.2]} 17... cxd5 {[%clk 0:02:16.6]} 18. Nc3 {[%clk 0:02:12.6]}
18... Rfc8 {[%clk 0:02:00.3]} 19. Rac1 {[%clk 0:01:48.9]} 19... Qc5 {[%clk
0:01:46.1]} 20. d4 {[%clk 0:01:45.5]} 20... Qc4 {[%clk 0:01:44.2]} 21. Bf1
{[%clk 0:01:37.9]} 21... Qb4 {[%clk 0:01:43.2]} 22. Bb5 {[%clk 0:01:30.6]} 22...
Nf6 {[%clk 0:01:42.2]} 23. Bd3 {[%clk 0:00:19.3]} 23... Bxd3 {[%clk 0:01:37.9]}
24. cxd3 {[%clk 0:00:19.4]} 24... Qxb2 {[%clk 0:01:28.3]} 25. Nb5 {[%clk
0:00:19.6]} 25... Rxc1 {[%clk 0:01:19.5]} 26. Qxc1 {[%clk 0:00:19.8]} 26... Qb4
{[%clk 0:01:07]} 27. Qa1 {[%clk 0:00:09.4]} 27... Rc8 {[%clk 0:01:03.5]} 28. Rc1
{[%clk 0:00:05.6]} 28... Rxc1+ {[%clk 0:01:01.7]} 29. Qxc1 {[%clk 0:00:06.5]}
29... Qxa4 {[%clk 0:00:55.4]} 30. Qc8+ {[%clk 0:00:06.5]} 30... Kh7 {[%clk
0:00:56]} 31. Nd6 {[%clk 0:00:07.4]} 31... Qd1+ {[%clk 0:00:49.7]} 32. Kg2
{[%clk 0:00:07.2]} 32... Qxd3 {[%clk 0:00:48.7]} 33. Nxf7 {[%clk 0:00:07.4]}
33... Qe4+ {[%clk 0:00:45.8]} 34. Kf1 {[%clk 0:00:06.4]} 34... Qxd4 {[%clk
0:00:33.4]} 35. Qxe6 {[%clk 0:00:06.2]} 35... Qe4 {[%clk 0:00:26.8]} 36. Ne5
{[%clk 0:00:05]} 36... d4 {[%clk 0:00:23]} 37. Qd6 {[%clk 0:00:03]} 37... Nd5
{[%clk 0:00:14.5]} 38. Nd7 {[%clk 0:00:01.8]} 38... d3 {[%clk 0:00:09.4]} 39.
Nf8+ {[%clk 0:00:01.1]} 39... Kg8 {[%clk 0:00:09.4]} 40. Ng6 {[%clk 0:00:01.3]}
40... Qh1# {[%clk 0:00:09.4]} 0-1

[Event "Late-Titled-Tuesday-Blitz-October-10-2023"]
[Site "Chess.com"]
[Date "2023.10.10"]
[Round "1"]
[White "temus_galaktionov"]
[Black "Langua_Chess"]
[Result "0-1"]
[WhiteElo "2878"]
[BlackElo "2484"]
[TimeControl "180+1"]
[EndTime "14:07:53 PDT"]
[Termination "Langua_Chess won by resignation"]

1. d4 {[%clk 0:03:00]} 1... d5 {[%clk 0:02:57.1]} 2. Nf3 {[%clk 0:03:00.3]} 2...
c5 {[%clk 0:02:55.2]} 3. c4 {[%clk 0:03:01.2]} 3... cxd4 {[%clk 0:02:41.2]} 4.
cxd5 {[%clk 0:02:58.2]} 4... Nf6 {[%clk 0:02:36]} 5. Qxd4 {[%clk 0:02:51.5]}
5... Qxd5 {[%clk 0:02:34]} 6. Nc3 {[%clk 0:02:50.2]} 6... Qxd4 {[%clk
0:02:26.6]} 7. Nxd4 {[%clk 0:02:51.1]} 7... a6 {[%clk 0:02:27]} 8. Nf3 {[%clk
0:02:44.6]} 8... Nc6 {[%clk 0:02:26.2]} 9. Bf4 {[%clk 0:02:43.8]} 9... Bf5
{[%clk 0:02:01.7]} 10. e3 {[%clk 0:02:43.1]} 10... e6 {[%clk 0:01:51.8]} 11. a3
{[%clk 0:02:39]} 11... Nh5 {[%clk 0:01:40.8]} 12. Bc7 {[%clk 0:02:36.3]} 12...
Rc8 {[%clk 0:01:38.4]} 13. Bb6 {[%clk 0:02:36.2]} 13... Nf6 {[%clk 0:01:30.4]}
14. Nh4 {[%clk 0:02:32.4]} 14... Bc2 {[%clk 0:01:25.5]} 15. Rc1 {[%clk
0:02:32.5]} 15... Bb3 {[%clk 0:01:25.7]} 16. e4 {[%clk 0:02:32.5]} 16... Be7
{[%clk 0:01:21.9]} 17. Nf3 {[%clk 0:02:30.6]} 17... O-O {[%clk 0:01:19.1]} 18.
Bd3 {[%clk 0:02:29]} 18... Nd7 {[%clk 0:01:18.9]} 19. Be3 {[%clk 0:02:28.2]}
19... Nde5 {[%clk 0:01:19.3]} 20. Be2 {[%clk 0:02:20.5]} 20... Nxf3+ {[%clk
0:01:12.1]} 21. gxf3 {[%clk 0:02:21.4]} 21... Ne5 {[%clk 0:01:12.9]} 22. f4
{[%clk 0:02:21.8]} 22... Nc4 {[%clk 0:01:12.5]} 23. Bxc4 {[%clk 0:02:22]} 23...
Rxc4 {[%clk 0:01:11.8]} 24. f3 {[%clk 0:02:19.5]} 24... Rfc8 {[%clk 0:01:10.5]}
25. Ke2 {[%clk 0:02:19.2]} 25... b5 {[%clk 0:01:09.4]} 26. Kd3 {[%clk 0:02:14]}
26... R4c7 {[%clk 0:01:02.2]} 27. Bd4 {[%clk 0:02:09.5]} 27... Rd7 {[%clk
0:00:41.2]} 28. Ke3 {[%clk 0:01:37.9]} 28... Rcd8 {[%clk 0:00:38.8]} 29. Bb6
{[%clk 0:01:37.9]} 29... Rd3+ {[%clk 0:00:35.9]} 30. Ke2 {[%clk 0:01:38]} 30...
Rd2+ {[%clk 0:00:33.7]} 31. Ke1 {[%clk 0:01:38.3]} 31... R8d3 {[%clk 0:00:32.6]}
32. Nd5 {[%clk 0:01:17.6]} 32... exd5 {[%clk 0:00:28.4]} 33. Rc8+ {[%clk
0:01:16.9]} 33... Bf8 {[%clk 0:00:29.1]} 34. Bc5 {[%clk 0:01:17.3]} 34... h5
{[%clk 0:00:22.6]} 35. Rxf8+ {[%clk 0:01:07.2]} 35... Kh7 {[%clk 0:00:23]} 36.
Rg1 {[%clk 0:01:00.2]} 36... Rd1+ {[%clk 0:00:13]} 37. Kf2 {[%clk 0:00:59]}
37... R3d2+ {[%clk 0:00:12.8]} 38. Kg3 {[%clk 0:00:59.2]} 38... Rxg1+ {[%clk
0:00:12.8]} 39. Bxg1 {[%clk 0:01:00.1]} 39... dxe4 {[%clk 0:00:12.7]} 40. fxe4
{[%clk 0:01:01]} 40... Rxb2 {[%clk 0:00:12.4]} 41. Rxf7 {[%clk 0:01:00.5]} 41...
Bxf7 {[%clk 0:00:11.9]} 42. Bc5 {[%clk 0:01:00]} 42... Rb3+ {[%clk 0:00:12]} 43.
Kh4 {[%clk 0:01:00.4]} 43... Bc4 {[%clk 0:00:12.5]} 44. Kg5 {[%clk 0:01:00.2]}
44... Rh3 {[%clk 0:00:12.2]} 45. f5 {[%clk 0:00:59.9]} 45... Rxh2 {[%clk
0:00:11.2]} 46. e5 {[%clk 0:01:00.2]} 46... Rg2+ {[%clk 0:00:09.3]} 47. Kxh5
{[%clk 0:00:59.8]} 47... Be2+ {[%clk 0:00:07.8]} 48. Kh4 {[%clk 0:01:00.2]}
48... Rg4+ {[%clk 0:00:07.4]} 49. Kh3 {[%clk 0:01:00.7]} 49... Rf4 {[%clk
0:00:06.7]} 50. e6 {[%clk 0:00:57.4]} 50... Rxf5 {[%clk 0:00:06]} 51. e7 {[%clk
0:00:58.3]} 51... Re5 {[%clk 0:00:06.5]} 52. Kg3 {[%clk 0:00:57.4]} 52... Bh5
{[%clk 0:00:06.2]} 53. Bd6 {[%clk 0:00:57.2]} 53... Re6 {[%clk 0:00:06.2]} 54.
Bb4 {[%clk 0:00:57.2]} 54... Be8 {[%clk 0:00:06.8]} 55. Kf4 {[%clk 0:00:57.7]}
55... g6 {[%clk 0:00:07]} 56. Kg5 {[%clk 0:00:57.3]} 56... Kg8 {[%clk
0:00:07.1]} 57. Kf4 {[%clk 0:00:55]} 57... Kf7 {[%clk 0:00:07.7]} 58. Kg4 {[%clk
0:00:55.7]} 58... Rxe7 {[%clk 0:00:08.2]} 59. Kf4 {[%clk 0:00:56.3]} 59... Re6
{[%clk 0:00:08.5]} 60. Kg3 {[%clk 0:00:56.8]} 60... Bd7 {[%clk 0:00:09.1]} 61.
Kf4 {[%clk 0:00:57.3]} 61... Bc6 {[%clk 0:00:09.8]} 62. Kg5 {[%clk 0:00:57.8]}
62... Bd5 {[%clk 0:00:10.3]} 63. Kf4 {[%clk 0:00:58.3]} 63... Rc6 {[%clk
0:00:11]} 64. Ke5 {[%clk 0:00:58.6]} 64... Be6 {[%clk 0:00:11]} 65. Kf4 {[%clk
0:00:59.1]} 65... Rc4+ {[%clk 0:00:11.6]} 66. Ke5 {[%clk 0:00:59.7]} 66... Rxb4
{[%clk 0:00:11.4]} 67. axb4 {[%clk 0:00:59.8]} 67... Ke7 {[%clk 0:00:12.2]} 68.
Kf4 {[%clk 0:00:59.9]} 68... Kf6 {[%clk 0:00:12.6]} 69. Ke4 {[%clk 0:00:59.6]}
69... g5 {[%clk 0:00:12.9]} 70. Kf3 {[%clk 0:01:00]} 70... Kf5 {[%clk
0:00:13.2]} 71. Kg3 {[%clk 0:01:00.9]} 71... Ke5 {[%clk 0:00:13.8]} 72. Kf3
{[%clk 0:01:01.3]} 72... Kd5 {[%clk 0:00:14.6]} 73. Ke3 {[%clk 0:01:02.2]} 73...
Kc4 {[%clk 0:00:15.3]} 74. Ke4 {[%clk 0:01:02.9]} 74... Kxb4 {[%clk 0:00:16]}
75. Ke5 {[%clk 0:01:03.8]} 75... a5 {[%clk 0:00:15.9]} 76. Kf6 {[%clk
0:01:04.7]} 76... g4 {[%clk 0:00:16]} 77. Kxe6 {[%clk 0:01:05.6]} 77... g3
{[%clk 0:00:16.5]} 78. Kd5 {[%clk 0:01:06.5]} 78... g2 {[%clk 0:00:17]} 79. Kd4
{[%clk 0:01:07.4]} 79... g1=Q+ {[%clk 0:00:16.7]} 80. Ke5 {[%clk 0:01:08.3]}
80... Qd1 {[%clk 0:00:16.6]} 81. Ke6 {[%clk 0:01:08.5]} 81... a4 {[%clk
0:00:17.3]} 82. Ke7 {[%clk 0:01:09.4]} 82... a3 {[%clk 0:00:18]} 83. Ke8 {[%clk
0:01:10.3]} 83... a2 {[%clk 0:00:18.7]} 0-1

[Event "Late-Titled-Tuesday-Blitz-October-10-2023"]
[Site "Chess.com"]
[Date "2023.10.10"]
[Round "1"]
[White "Jarming"]
[Black "Inepton_Fermion"]
[Result "1-0"]
[WhiteElo "2775"]
[BlackElo "2419"]
[TimeControl "180+1"]
[EndTime "14:07:53 PDT"]
[Termination "Jarming won by checkmate"]

1. d4 {[%clk 0:02:48.8]} 1... Nf6 {[%clk 0:02:58.2]} 2. c4 {[%clk 0:02:48.4]}
2... e6 {[%clk 0:02:58.2]} 3. Nc3 {[%clk 0:02:48.6]} 3... Bb4 {[%clk 0:02:58.7]}
4. Qc2 {[%clk 0:02:46.4]} 4... d5 {[%clk 0:02:58]} 5. cxd5 {[%clk 0:02:41.8]}
5... exd5 {[%clk 0:02:51.4]} 6. Bg5 {[%clk 0:02:41.7]} 6... O-O {[%clk
0:02:46.4]} 7. e3 {[%clk 0:02:41]} 7... h6 {[%clk 0:02:40.8]} 8. Bh4 {[%clk
0:02:40]} 8... c6 {[%clk 0:02:30.6]} 9. Bd3 {[%clk 0:02:38.7]} 9... Re8 {[%clk
0:02:29.9]} 10. Ne2 {[%clk 0:02:38.1]} 10... Nbd7 {[%clk 0:02:23.6]} 11. O-O
{[%clk 0:02:37.5]} 11... Be7 {[%clk 0:02:24]} 12. f3 {[%clk 0:02:34.8]} 12...
Nh5 {[%clk 0:02:21.7]} 13. Bf2 {[%clk 0:02:33.8]} 13... Nhf6 {[%clk 0:02:22.3]}
14. h3 {[%clk 0:02:32.5]} 14... c5 {[%clk 0:02:12.7]} 15. dxc5 {[%clk 0:02:25]}
15... Nxc5 {[%clk 0:02:12.5]} 16. Bb5 {[%clk 0:02:25.3]} 16... Bd7 {[%clk
0:02:03.9]} 17. Bxd7 {[%clk 0:02:25.3]} 17... Qxd7 {[%clk 0:02:04.8]} 18. Rad1
{[%clk 0:02:25.3]} 18... Rac8 {[%clk 0:02:03]} 19. e4 {[%clk 0:02:24.7]} 19...
Na6 {[%clk 0:01:34.1]} 20. Nf4 {[%clk 0:02:05.9]} 20... Qc7 {[%clk 0:01:28.8]}
21. Nfxd5 {[%clk 0:01:57]} 21... Nxd5 {[%clk 0:01:28.2]} 22. exd5 {[%clk
0:01:57.9]} 22... Red8 {[%clk 0:01:09.4]} 23. Qa4 {[%clk 0:01:47.3]} 23... Bf6
{[%clk 0:01:00.1]} 24. d6 {[%clk 0:01:39.1]} 24... Qc6 {[%clk 0:00:47.1]} 25. d7
{[%clk 0:01:30.1]} 25... Rc7 {[%clk 0:00:41.2]} 26. Qxc6 {[%clk 0:01:24.6]}
26... bxc6 {[%clk 0:00:39.6]} 27. Rd2 {[%clk 0:00:57.4]} 27... Rdxd7 {[%clk
0:00:38.7]} 28. Rc2 {[%clk 0:00:57.4]} 28... Nb4 {[%clk 0:00:37.9]} 29. Re2
{[%clk 0:00:55.7]} 29... Nd3 {[%clk 0:00:32.6]} 30. Bg3 {[%clk 0:00:50.5]} 30...
Rb7 {[%clk 0:00:31.1]} 31. Ne4 {[%clk 0:00:48]} 31... Bxb2 {[%clk 0:00:29.1]}
32. Kh2 {[%clk 0:00:42.4]} 32... Rd5 {[%clk 0:00:16.1]} 33. Rc2 {[%clk
0:00:39.1]} 33... Rb6 {[%clk 0:00:12.3]} 34. Rb1 {[%clk 0:00:25.5]} 34... c5
{[%clk 0:00:07.2]} 35. a4 {[%clk 0:00:17.7]} 35... Bd4 {[%clk 0:00:07.1]} 36.
Rd1 {[%clk 0:00:16]} 36... Nb2 {[%clk 0:00:03.2]} 37. Rdc1 {[%clk 0:00:15.6]}
37... Nxa4 {[%clk 0:00:02.9]} 38. Rc4 {[%clk 0:00:14]} 38... Rb4 {[%clk
0:00:02.9]} 39. R4c2 {[%clk 0:00:10.7]} 39... a5 {[%clk 0:00:01.8]} 40. Nd6
{[%clk 0:00:11.1]} 40... Rb2 {[%clk 0:00:01.7]} 41. Nc4 {[%clk 0:00:11]} 41...
Rxc2 {[%clk 0:00:01.8]} 42. Rxc2 {[%clk 0:00:11.9]} 42... Rd7 {[%clk 0:00:02]}
43. Nxa5 {[%clk 0:00:12.2]} 43... Nb6 {[%clk 0:00:01.4]} 44. Nc6 {[%clk
0:00:12]} 44... Nd5 {[%clk 0:00:01.5]} 45. Rd2 {[%clk 0:00:11.7]} 45... g6
{[%clk 0:00:01.7]} 46. Nxd4 {[%clk 0:00:11.4]} 46... cxd4 {[%clk 0:00:02.4]} 47.
Rxd4 {[%clk 0:00:12.3]} 47... Nf6 {[%clk 0:00:02.9]} 48. Ra4 {[%clk 0:00:11.6]}
48... h5 {[%clk 0:00:02.6]} 49. Be5 {[%clk 0:00:12]} 49... Nh7 {[%clk
0:00:02.1]} 50. Ra8+ {[%clk 0:00:11.6]} 50... Nf8 {[%clk 0:00:01.9]} 51. Bb2
{[%clk 0:00:11.9]} 51... f6 {[%clk 0:00:01.6]} 52. Bxf6 {[%clk 0:00:11.8]} 52...
Rf7 {[%clk 0:00:02.3]} 53. Bc3 {[%clk 0:00:12.4]} 53... Kh7 {[%clk 0:00:02.7]}
54. h4 {[%clk 0:00:11.1]} 54... Ne6 {[%clk 0:00:03.1]} 55. Rh8# {[%clk
0:00:10.7]} 1-0

[Event "Late-Titled-Tuesday-Blitz-October-10-2023"]
[Site "Chess.com"]
[Date "2023.10.10"]
[Round "1"]
[White "micke12a"]
[Black "NFChess13"]
[Result "1/2-1/2"]
[WhiteElo "2340"]
[BlackElo "2640"]
[TimeControl "180+1"]
[EndTime "14:07:57 PDT"]
[Termination "Game drawn - insufficient material"]

1. e4 {[%clk 0:02:56.6]} 1... g6 {[%clk 0:03:00.9]} 2. d4 {[%clk 0:02:56.3]}
2... Bg7 {[%clk 0:03:00.3]} 3. Nc3 {[%clk 0:02:56.6]} 3... a6 {[%clk 0:02:59.9]}
4. Be3 {[%clk 0:02:54.7]} 4... b5 {[%clk 0:02:59.1]} 5. Qd2 {[%clk 0:02:55.1]}
5... Bb7 {[%clk 0:02:58.3]} 6. f3 {[%clk 0:02:55.5]} 6... e6 {[%clk 0:02:57.9]}
7. Bd3 {[%clk 0:02:55.9]} 7... d6 {[%clk 0:02:57.3]} 8. h4 {[%clk 0:02:54.7]}
8... h5 {[%clk 0:02:50.9]} 9. a4 {[%clk 0:02:52.8]} 9... c6 {[%clk 0:02:48.6]}
10. axb5 {[%clk 0:02:52.2]} 10... axb5 {[%clk 0:02:43.9]} 11. Rxa8 {[%clk
0:02:51.4]} 11... Bxa8 {[%clk 0:02:44.8]} 12. d5 {[%clk 0:02:45.3]} 12... b4
{[%clk 0:02:37.9]} 13. Na4 {[%clk 0:02:43.9]} 13... cxd5 {[%clk 0:02:37.7]} 14.
Qxb4 {[%clk 0:02:37.4]} 14... Nd7 {[%clk 0:02:34.7]} 15. Bb5 {[%clk 0:02:34.4]}
15... Nf6 {[%clk 0:02:33.8]} 16. Qxd6 {[%clk 0:02:30.9]} 16... Bf8 {[%clk
0:02:23.9]} 17. Qa6 {[%clk 0:02:24.4]} 17... dxe4 {[%clk 0:02:21.9]} 18. Nb6
{[%clk 0:02:22.4]} 18... Bd5 {[%clk 0:02:00.4]} 19. Nxd5 {[%clk 0:02:10.2]}
19... Nxd5 {[%clk 0:01:59.5]} 20. Bd4 {[%clk 0:02:04.1]} 20... Nc7 {[%clk
0:01:31.2]} 21. Qc6 {[%clk 0:01:52.8]} 21... Nxb5 {[%clk 0:01:22]} 22. Qxb5
{[%clk 0:01:50.1]} 22... Rh7 {[%clk 0:01:17.5]} 23. fxe4 {[%clk 0:01:49]} 23...
Bg7 {[%clk 0:01:17.1]} 24. Nf3 {[%clk 0:01:46]} 24... Bxd4 {[%clk 0:01:16]} 25.
Nxd4 {[%clk 0:01:46.8]} 25... Qb6 {[%clk 0:01:05.1]} 26. Qxb6 {[%clk 0:01:35.9]}
26... Nxb6 {[%clk 0:01:06]} 27. Ke2 {[%clk 0:01:35.5]} 27... e5 {[%clk
0:01:04.1]} 28. Nf3 {[%clk 0:01:33.6]} 28... f6 {[%clk 0:01:04]} 29. b3 {[%clk
0:01:34.3]} 29... Ra7 {[%clk 0:01:00.9]} 30. Rd1 {[%clk 0:01:28.2]} 30... Ra2
{[%clk 0:01:00.3]} 31. Rd6 {[%clk 0:01:25.3]} 31... Nd7 {[%clk 0:00:55.7]} 32.
Kd2 {[%clk 0:01:19.2]} 32... Nc5 {[%clk 0:00:55.7]} 33. Ke3 {[%clk 0:01:03.8]}
33... Rxc2 {[%clk 0:00:55.2]} 34. Rxf6 {[%clk 0:01:01.9]} 34... Rc3+ {[%clk
0:00:54.9]} 35. Ke2 {[%clk 0:00:59.7]} 35... Nxe4 {[%clk 0:00:54]} 36. Rxg6
{[%clk 0:00:59.7]} 36... Rxb3 {[%clk 0:00:47.5]} 37. Re6+ {[%clk 0:00:58.4]}
37... Kf7 {[%clk 0:00:44.2]} 38. Rxe5 {[%clk 0:00:57.8]} 38... Nf6 {[%clk
0:00:43.2]} 39. Ng5+ {[%clk 0:00:50]} 39... Kg6 {[%clk 0:00:42.8]} 40. Re6
{[%clk 0:00:40.8]} 40... Kf5 {[%clk 0:00:42.8]} 41. Ra6 {[%clk 0:00:37.9]} 41...
Ng4 {[%clk 0:00:40.9]} 42. Ra5+ {[%clk 0:00:33.1]} 42... Kf4 {[%clk 0:00:40.7]}
43. Nf3 {[%clk 0:00:23.8]} 43... Rb2+ {[%clk 0:00:25.9]} 44. Kd3 {[%clk
0:00:18.9]} 44... Rxg2 {[%clk 0:00:24.3]} 45. Nd4 {[%clk 0:00:19.2]} 45... Ne5+
{[%clk 0:00:22.6]} 46. Kc3 {[%clk 0:00:16.8]} 46... Rg3+ {[%clk 0:00:22.3]} 47.
Kc2 {[%clk 0:00:13.9]} 47... Rh3 {[%clk 0:00:18.3]} 48. Ne6+ {[%clk 0:00:12.1]}
48... Kf5 {[%clk 0:00:17.3]} 49. Ng7+ {[%clk 0:00:12.5]} 49... Kg6 {[%clk
0:00:10.7]} 50. Rxe5 {[%clk 0:00:11.6]} 50... Kxg7 {[%clk 0:00:11.2]} 51. Rxh5
{[%clk 0:00:11.5]} 51... Kg6 {[%clk 0:00:12.1]} 52. Rg5+ {[%clk 0:00:11.8]}
52... Kh6 {[%clk 0:00:12.3]} 53. Rg2 {[%clk 0:00:12.2]} 53... Kh5 {[%clk
0:00:13.2]} 54. Rd2 {[%clk 0:00:12.5]} 54... Rxh4 {[%clk 0:00:13.7]} 55. Rd3
{[%clk 0:00:13.2]} 55... Rc4+ {[%clk 0:00:13.9]} 56. Rc3 {[%clk 0:00:13.4]}
56... Rg4 {[%clk 0:00:14.8]} 57. Rd3 {[%clk 0:00:13.7]} 57... Kg5 {[%clk
0:00:15.7]} 58. Kc3 {[%clk 0:00:14.6]} 58... Kf4 {[%clk 0:00:16.6]} 59. Rd4+
{[%clk 0:00:15.1]} 59... Kf5 {[%clk 0:00:17.5]} 60. Rxg4 {[%clk 0:00:15.4]}
60... Kxg4 {[%clk 0:00:18.4]} 1/2-1/2

[Event "Late-Titled-Tuesday-Blitz-October-10-2023"]
[Site "Chess.com"]
[Date "2023.10.10"]
[Round "1"]
[White "lamomiajunior"]
[Black "Dr_crypt"]
[Result "1-0"]
[WhiteElo "2721"]
[BlackElo "2399"]
[TimeControl "180+1"]
[EndTime "14:07:59 PDT"]
[Termination "lamomiajunior won by resignation"]

1. d4 {[%clk 0:02:59.8]} 1... Nf6 {[%clk 0:03:00]} 2. c4 {[%clk 0:03:00.2]} 2...
e6 {[%clk 0:03:00.4]} 3. Nc3 {[%clk 0:03:00.9]} 3... Bb4 {[%clk 0:03:00.8]} 4.
e3 {[%clk 0:03:01.4]} 4... c5 {[%clk 0:03:00.2]} 5. Ne2 {[%clk 0:03:01.1]} 5...
d5 {[%clk 0:02:58.3]} 6. a3 {[%clk 0:03:00.6]} 6... Ba5 {[%clk 0:02:58.2]} 7.
dxc5 {[%clk 0:02:58.9]} 7... dxc4 {[%clk 0:02:57.4]} 8. Qxd8+ {[%clk 0:02:56.7]}
8... Bxd8 {[%clk 0:02:54.8]} 9. Nd4 {[%clk 0:02:57.4]} 9... Nbd7 {[%clk
0:02:45.1]} 10. c6 {[%clk 0:02:55.2]} 10... Nb6 {[%clk 0:02:36.4]} 11. g3 {[%clk
0:02:47.2]} 11... bxc6 {[%clk 0:02:30.3]} 12. Bg2 {[%clk 0:02:46.7]} 12... Nfd5
{[%clk 0:02:29.5]} 13. Nxc6 {[%clk 0:02:47.2]} 13... Bf6 {[%clk 0:02:28]} 14.
Nxd5 {[%clk 0:02:45.9]} 14... exd5 {[%clk 0:02:22.7]} 15. O-O {[%clk 0:02:46.3]}
15... Bb7 {[%clk 0:02:18.7]} 16. Nd4 {[%clk 0:02:40.8]} 16... O-O {[%clk
0:01:56.7]} 17. Bd2 {[%clk 0:02:40.9]} 17... a5 {[%clk 0:01:51.3]} 18. Bc3
{[%clk 0:02:39.5]} 18... Na4 {[%clk 0:01:47.9]} 19. Rfd1 {[%clk 0:02:37.5]}
19... Rfd8 {[%clk 0:01:47.5]} 20. Nb5 {[%clk 0:02:35.6]} 20... Bxc3 {[%clk
0:01:39.3]} 21. Nxc3 {[%clk 0:02:32.3]} 21... Nxc3 {[%clk 0:01:29]} 22. bxc3
{[%clk 0:02:33.2]} 22... Bc6 {[%clk 0:01:29.1]} 23. Rd4 {[%clk 0:02:29.4]} 23...
Rab8 {[%clk 0:01:17.5]} 24. Rad1 {[%clk 0:02:28.8]} 24... Rb3 {[%clk 0:01:11.9]}
25. Rxc4 {[%clk 0:02:26.4]} 25... Ba8 {[%clk 0:01:03]} 26. Bxd5 {[%clk
0:02:22.5]} 26... Kf8 {[%clk 0:00:58.4]} 27. Rc8 {[%clk 0:01:55.2]} 27... Rxc8
{[%clk 0:00:49.6]} 28. Bxb3 {[%clk 0:01:55.2]} 28... Rxc3 {[%clk 0:00:49.6]} 29.
Rd8+ {[%clk 0:01:55.2]} 29... Ke7 {[%clk 0:00:48.4]} 30. Rxa8 {[%clk 0:01:56.1]}
30... Rxb3 {[%clk 0:00:46.9]} 31. Rxa5 {[%clk 0:01:56.3]} 31... h5 {[%clk
0:00:40.8]} 32. Rxh5 {[%clk 0:01:54.9]} 32... Rxa3 {[%clk 0:00:40.7]} 33. Rd5
{[%clk 0:01:54.4]} 33... Ke6 {[%clk 0:00:40]} 34. Rd4 {[%clk 0:01:54.7]} 34...
f5 {[%clk 0:00:37.3]} 35. h4 {[%clk 0:01:54.8]} 35... Ra6 {[%clk 0:00:34.1]} 36.
Kg2 {[%clk 0:01:55.1]} 36... Kf6 {[%clk 0:00:34.2]} 37. Kf3 {[%clk 0:01:55.4]}
37... g6 {[%clk 0:00:34.3]} 38. Kf4 {[%clk 0:01:55.5]} 38... Rb6 {[%clk
0:00:33.9]} 39. f3 {[%clk 0:01:55.5]} 39... Ra6 {[%clk 0:00:34.2]} 40. e4 {[%clk
0:01:55]} 40... fxe4 {[%clk 0:00:34.2]} 41. Rxe4 {[%clk 0:01:55.6]} 41... Rb6
{[%clk 0:00:34.4]} 42. g4 {[%clk 0:01:54.7]} 42... Ra6 {[%clk 0:00:33]} 43. Kg3
{[%clk 0:01:51.6]} 43... Rb6 {[%clk 0:00:32.8]} 44. Kf4 {[%clk 0:01:51.9]} 44...
Ra6 {[%clk 0:00:33]} 45. g5+ {[%clk 0:01:52.5]} 45... Kf7 {[%clk 0:00:33.2]} 46.
Rb4 {[%clk 0:01:52.4]} 46... Rc6 {[%clk 0:00:32.8]} 47. Rb7+ {[%clk 0:01:51.6]}
47... Kg8 {[%clk 0:00:31.7]} 48. Re7 {[%clk 0:01:51.6]} 48... Kf8 {[%clk
0:00:31.4]} 49. Re4 {[%clk 0:01:50]} 49... Kf7 {[%clk 0:00:31.7]} 50. Kg4 {[%clk
0:01:50.7]} 50... Rc1 {[%clk 0:00:30.2]} 51. Ra4 {[%clk 0:01:48.5]} 51... Rf1
{[%clk 0:00:29.4]} 52. Ra7+ {[%clk 0:01:45.4]} 52... Kg8 {[%clk 0:00:28.9]} 53.
f4 {[%clk 0:01:43.4]} 53... Rg1+ {[%clk 0:00:28.8]} 54. Kf3 {[%clk 0:01:43.9]}
54... Rh1 {[%clk 0:00:23.9]} 55. Ke4 {[%clk 0:01:42.8]} 55... Rxh4 {[%clk
0:00:23.7]} 56. Ke5 {[%clk 0:01:43.2]} 56... Rg4 {[%clk 0:00:14.4]} 57. Ra4
{[%clk 0:01:24.1]} 57... Kf7 {[%clk 0:00:13.6]} 58. Ra7+ {[%clk 0:01:21.8]}
58... Kg8 {[%clk 0:00:13.9]} 59. Ra6 {[%clk 0:01:13.8]} 59... Kf7 {[%clk
0:00:11.5]} 60. Rf6+ {[%clk 0:01:14]} 60... Kg7 {[%clk 0:00:11.8]} 61. Ke6
{[%clk 0:01:12.7]} 61... Rg1 {[%clk 0:00:12]} 62. Rf7+ {[%clk 0:01:11.8]} 62...
Kg8 {[%clk 0:00:12.2]} 63. Kf6 {[%clk 0:01:12.5]} 63... Ra1 {[%clk 0:00:09.8]}
64. Kxg6 {[%clk 0:01:12.7]} 64... Ra6+ {[%clk 0:00:10.1]} 65. Rf6 {[%clk
0:01:13.4]} 65... Ra7 {[%clk 0:00:10.8]} 66. Rb6 {[%clk 0:01:12.6]} 66... Rg7+
{[%clk 0:00:10.9]} 67. Kf5 {[%clk 0:01:13.2]} 67... Rf7+ {[%clk 0:00:11.8]} 68.
Kg4 {[%clk 0:01:14]} 68... Ra7 {[%clk 0:00:12.1]} 69. f5 {[%clk 0:01:14.2]}
69... Ra4+ {[%clk 0:00:12.6]} 70. Kh5 {[%clk 0:01:14.6]} 70... Ra7 {[%clk
0:00:12.8]} 71. f6 {[%clk 0:01:14.1]} 71... Rb7 {[%clk 0:00:12.9]} 72. Rxb7
{[%clk 0:01:13.9]} 1-0